Cogmind - Beta 12 @@@ ROGUE MODE // 2023.05.08 @ 22:19:48 // Winter2019/RPGLIKE Player: Maiker Result: Self-destructed Performance ------------- Evolutions (6) 3000 Regions Visited (23) 4600 Robots Destroyed (407) 2035 Value Destroyed (18669) 18669 Prototype IDs (220) 4400 Alien Tech Used (0) 0 Bonus (21217) 21217 TOTAL SCORE: 53921 Bonus ------- Triggered High Security 1500 High Alert Combat Kills 9566 Follower Combat Kills 2516 Network Hubs Disabled 800 Met Data Miner 300 Used Data Conduit 3000 Met Warlord at Base 500 MAIN.C Attacked Warlord 500 Warlord Defense Kills 2958 Built Enhanced Grunts 300 A7 Reached Mainframe 300 Met R17 at Cetus 500 Friendly Fire -1523 Cogmind --------- Core Integrity 645/650 Matter 1425/1500 Energy 2812/2812 System Corruption 0% Temperature Cool (0) Movement Hovering (36) Location -3/Proximity Caves Parts ------- > --- POWER (4) -------- Neutrino-Quantum Core > --- PROPULSION (8) --- Hovering Gravjet-NPA Exoskeleton > --- UTILITY (10) ----- Armored Scrap Engine Active Sensor Suite Advanced Terrain Scanner Tactical Coordination Suite Core Analyzer Improved Weapon Cycler Improved Remote Force Field > --- WEAPON (4) ------- Shotgun EM Rail Construct/C Makeshift Spear > --- INVENTORY (10) --- Improved Signal Interpreter Makeshift Salvage Targeting Computer Improved Transmission Jammer Improved System Restoration Module Faulty Force Rifle Force Rifle Long-range Proton Cannon Advanced KE Penetrator Long-range Missile Launcher Advanced Datajack Peak State ------------ > --- POWER ------------ Neutrino-Quantum Core > --- PROPULSION ------- Hovering Gravjet-NPA Exoskeleton > --- UTILITY ---------- Armored Scrap Engine Active Sensor Suite Advanced Terrain Scanner Tactical Coordination Suite Core Analyzer Improved Weapon Cycler Improved Remote Force Field > --- WEAPON ----------- Advanced Datajack Shotgun EM Rail Construct/C Makeshift Spear > --- INVENTORY -------- Improved Signal Interpreter Makeshift Salvage Targeting Computer Improved Transmission Jammer Improved System Restoration Module Force Rifle Force Rifle Long-range Proton Cannon Advanced KE Penetrator Long-range Missile Launcher [Rating: 167] Favorites ----------- Power Constructs Engine Light Ion Engine Power Core Constructs Propulsion Constructs Treads Medium Treads Leg Aluminum Leg Hover Unit Constructs Flight Unit VTOL Module Utility Armored Scrap Engine Device Armored Scrap Engine Processor Core Analyzer Protection Improved Light Armor Plating Weapon Makeshift Spear Energy Gun Medium Laser Energy Cannon Constructs Ballistic Gun Assault Rifle Ballistic Cannon Light Cannon Launcher Rocket Launcher Piercing Weapon Makeshift Spear Special Melee Weapon Datajack Build | -11 -10 -10 -9 -8 -8 -8 -6 -6 -6 -6 -6 -6 -5 -5 -5 -5 -5 -5 -4 -4 -4 -4 -3 ------- Run | Jun Mat Min Mat Mat Sto Rec Fac Was Fac Low Low Dat Pro Fac Ext Cet Arc Hub Fac Upp Upp War Pro Slots Evolved 22 | 22 . . . . . . . . . . . . . . . . . . . . . . . Power 3 | 3 . . . . . . . . . . . . . . . . . . . . . . . Propulsion 7 | 7 . . . . . . . . . . . . . . . . . . . . . . . Utility 9 | 9 . . . . . . . . . . . . . . . . . . . . . . . Weapon 3 | 3 . . . . . . . . . . . . . . . . . . . . . . . Parts Attached 103 | 3 14 2 18 5 9 1 24 . 1 . 5 . 1 11 4 . 2 . . 1 1 1 . Power 11 | 1 1 . 6 . 2 . 1 . . . . . . . . . . . . . . . . Engine 7 | 1 1 . 5 . . . . . . . . . . . . . . . . . . . . Core 4 | . . . 1 . 2 . 1 . . . . . . . . . . . . . . . . Reactor . | . . . . . . . . . . . . . . . . . . . . . . . . Propulsion 18 | . 8 . . . 5 . 5 . . . . . . . . . . . . . . . . Treads 2 | . . . . . . . 2 . . . . . . . . . . . . . . . . Leg . | . . . . . . . . . . . . . . . . . . . . . . . . Wheel . | . . . . . . . . . . . . . . . . . . . . . . . . Hover . | . . . . . . . . . . . . . . . . . . . . . . . . Flight 16 | . 8 . . . 5 . 3 . . . . . . . . . . . . . . . . Utility 51 | . 4 . 8 4 1 1 12 . 1 . 5 . . 11 1 . 2 . . 1 . . . Device 38 | . 2 . 2 1 1 1 11 . 1 . 5 . . 10 1 . 2 . . 1 . . . Storage . | . . . . . . . . . . . . . . . . . . . . . . . . Processor 5 | . 2 . . 1 . . 1 . . . . . . 1 . . . . . . . . . Hackware . | . . . . . . . . . . . . . . . . . . . . . . . . Protection 8 | . . . 6 2 . . . . . . . . . . . . . . . . . . . Artifact . | . . . . . . . . . . . . . . . . . . . . . . . . Weapon 23 | 2 1 2 4 1 1 . 6 . . . . . 1 . 3 . . . . . 1 1 . Energy Gun 6 | 1 . . 2 . . . 3 . . . . . . . . . . . . . . . . Energy Cannon 3 | . . . 1 . . . 2 . . . . . . . . . . . . . . . . Ballistic Gun 3 | 1 . . . . 1 . 1 . . . . . . . . . . . . . . . . Ballistic Cannon 2 | . 1 . . 1 . . . . . . . . . . . . . . . . . . . Launcher 2 | . . 1 . . . . . . . . . . . . 1 . . . . . . . . Special Weapon . | . . . . . . . . . . . . . . . . . . . . . . . . Impact Weapon . | . . . . . . . . . . . . . . . . . . . . . . . . Slashing Weapon . | . . . . . . . . . . . . . . . . . . . . . . . . Piercing Weapon 1 | . . 1 . . . . . . . . . . . . . . . . . . . . . Special Melee Weapon 6 | . . . 1 . . . . . . . . . 1 . 2 . . . . . 1 1 . Unidentified Prototypes 17 | . . . 1 . 3 . 12 . . . 1 . . . . . . . . . . . . Corrupted Parts 1 | . 1 . . . . . . . . . . . . . . . . . . . . . . System Corruption 8 | . 8 . . . . . . . . . . . . . . . . . . . . . . Parts Lost . | . . . . . . . . . . . . . . . . . . . . . . . . Power . | . . . . . . . . . . . . . . . . . . . . . . . . Propulsion . | . . . . . . . . . . . . . . . . . . . . . . . . Utility . | . . . . . . . . . . . . . . . . . . . . . . . . Weapon . | . . . . . . . . . . . . . . . . . . . . . . . . Highest Loss Streak . | . . . . . . . . . . . . . . . . . . . . . . . . To Critical Strikes . | . . . . . . . . . . . . . . . . . . . . . . . . Average Slot Usage (%) 48 | . 33 68 84 100 99 65 48 42 42 42 39 42 42 41 42 42 42 42 42 42 42 42 . Engine 1 | . 7 11 12 11 7 2 1 1 . . . . . . . . . . . . . . . Reactor 1 | . . . . . . . . 1 3 3 3 3 3 3 3 3 3 3 3 . . . . Treads 1 | . . . . . . . 2 . . . . . . 1 1 3 3 3 3 . . . . Flight 5 | . 12 30 30 30 29 14 1 3 2 3 3 3 3 1 . . . . . . . . . Device 20 | . 4 7 14 15 15 19 23 23 23 23 20 23 23 18 20 23 23 23 23 23 23 23 . Processor 4 | . . 7 7 7 7 7 5 3 3 3 3 3 3 6 5 3 3 3 3 3 3 3 . Protection 1 | . . . 2 15 15 7 . . . . . . . . . . . . . . . . . Ballistic Cannon 2 | . 2 3 3 3 3 1 1 . 3 3 3 3 3 3 3 3 3 3 3 3 1 . . Piercing Weapon 2 | . . . 3 3 3 3 3 3 3 3 3 3 3 3 3 3 3 3 3 3 3 3 . Naked Turns . | . . . . . . . . . . . . . . . . . . . . . . . . Heaviest Build 95 | 11 19 25 56 58 63 63 55 46 47 47 47 47 48 67 69 95 95 95 95 95 84 84 . Greatest Support 420 | 110 132 132 132 132 137 145 275 275 325 272 272 272 272 272 306 306 306 306 420 420 420 420 . Greatest Overweight (x) . | . . . . . . . . . . . . . . . . . . . . . . . . Average Overweight (x) . | . . . . . . . . . . . . . . . . . . . . . . . . Largest Inventory Capacity 10 | 10 10 10 10 10 10 10 10 10 10 10 10 10 10 10 10 10 10 10 10 10 10 10 . Average Capacity 10 | 10 10 10 10 10 10 10 10 10 10 10 10 10 10 10 10 10 10 10 10 10 10 10 . Most Carried 10 | 5 10 9 10 10 10 10 10 10 10 10 10 10 10 10 10 10 10 10 10 10 10 10 . Average Carried 8 | 1 8 9 9 9 9 5 6 10 10 9 9 10 9 9 9 9 10 10 9 9 9 9 . Final Capacity 10 | 10 10 10 10 10 10 10 10 10 10 10 10 10 10 10 10 10 10 10 10 10 10 10 10 Final Carried 10 | 6 9 9 10 10 10 4 10 10 10 10 10 10 10 10 9 10 10 10 10 10 10 10 10 Scrap Engine Consumption 144 | . . . . . . 31 51 16 2 2 . . 1 10 6 12 . 4 5 . 1 3 . Constructs Created 5 | . . . . . . 4 1 . . . . . . . . . . . . . . . . Constructs Modified 56 | . . . . . . 8 22 4 3 1 . . . 4 4 3 . 1 3 1 1 1 . Class Distribution -------------------- 37% | Wizard-Ninja 31% | Wizard-Assassin 18% | Wizard-Scout 11% | Wizard-Construct Dominant Class ---------------- Wizard-Scout | -10/Materials Wizard-Scout | -10/Mines Wizard-Ninja | -9/Materials Wizard-Ninja | -8/Materials Wizard-Ninja | -8/Storage Wizard-Ninja | -8/Recycling Wizard-Assassin | -6/Factory Wizard-Ninja | -6/Waste Wizard-Ninja | -6/Factory Wizard-Ninja | -6/Lower Caves Wizard-Ninja | -6/Lower Caves Wizard-Ninja | -6/Data Miner Wizard-Ninja | -5/Proximity Caves Wizard-Scout | -5/Factory Wizard-Scout | -5/Extension Wizard-Assassin | -5/Cetus Wizard-Assassin | -5/Archives Wizard-Assassin | -5/Hub_04(d) Wizard-Assassin | -4/Factory Wizard-Construct | -4/Upper Caves Wizard-Construct | -4/Upper Caves Wizard-Construct | -4/Warlord Wizard-Construct | -3/Proximity Caves Resources | -11 -10 -10 -9 -8 -8 -8 -6 -6 -6 -6 -6 -6 -5 -5 -5 -5 -5 -5 -4 -4 -4 -4 -3 ----------- Run | Jun Mat Min Mat Mat Sto Rec Fac Was Fac Low Low Dat Pro Fac Ext Cet Arc Hub Fac Upp Upp War Pro Matter Collected 7561 | 259 472 128 1269 152 145 10 770 24 44 236 . 256 265 2393 541 142 85 175 50 15 56 74 . Remotely 1512 | . . . 1082 152 145 10 123 . . . . . . . . . . . . . . . . Salvage Created 19764 | . 274 142 725 318 394 515 3702 718 213 596 . 256 494 3549 3558 930 226 745 698 140 140 1431 . Parts 1027 | . 37 3 60 36 24 19 162 13 18 23 . 15 30 189 174 57 21 53 51 8 6 28 . Haulers Intercepted 18 | . 2 . 2 1 1 . 9 . 1 . . . . 1 . . . 1 . . . . . Recyclers Shooed 1 | . . . . 1 . . . . . . . . . . . . . . . . . . . Parts Field Recycled . | . . . . . . . . . . . . . . . . . . . . . . . . Retrieved Matter . | . . . . . . . . . . . . . . . . . . . . . . . . Parts Self-Destructed 65 | . . . . . . . . . . 28 . . 21 . . . . . . 8 8 . . Prevented 9 | . . . . . . . . . . 4 . . . . . . . . . . 5 . . Kills | -11 -10 -10 -9 -8 -8 -8 -6 -6 -6 -6 -6 -6 -5 -5 -5 -5 -5 -5 -4 -4 -4 -4 -3 ------- Run | Jun Mat Min Mat Mat Sto Rec Fac Was Fac Low Low Dat Pro Fac Ext Cet Arc Hub Fac Upp Upp War Pro Combat Hostiles Destroyed 340 | . 9 25 20 6 7 4 48 . 2 13 . 2 10 51 69 15 3 15 10 3 4 24 . Melee 14 | . . . 1 . 2 4 3 . . . . . . 1 3 . . . . . . . . Guns 8 | . 3 . . . . . 5 . . . . . . . . . . . . . . . . Cannons 241 | . 5 2 14 3 4 . 36 . 2 13 . 2 10 50 41 15 3 15 10 3 3 10 . AOE 70 | . 1 23 5 3 1 . 3 . . . . . . . 25 . . . . . . 9 . Classes Destroyed 24 | . 6 1 2 . . . 9 . . 1 . . 1 1 3 . . . . . . . . Worker 10 | . . . . . . . 6 . 1 . . . . 2 1 . . . . . . . . Builder 12 | . 3 . . . 1 . 2 . . . . . . 5 1 . . . . . . . . Tunneler 5 | . . . . . . . 1 . 1 . . . . . 3 . . . . . . . . Hauler 18 | . 2 . 2 1 1 . 9 . 1 . . . . 1 . . . 1 . . . . . Recycler 14 | . . . 1 1 . 4 4 . . . . . . 1 3 . . . . . . . . Carrier 1 | . . . . . . . . . . . . . . 1 . . . . . . . . . Mechanic 2 | . . . . . . . . . . . . . . . 2 . . . . . . . . Operator 8 | . 1 . 1 1 . . 2 . . . . . . . 1 . 2 . . . . . . Watcher 18 | . 2 . 4 3 . . 2 . . . . . . 3 . 1 . 3 . . . . . Swarmer 48 | . 6 3 3 3 . . 15 . . 4 . . . . 6 3 . . . . 1 4 . Saboteur 6 | . . . . . . . 1 . . . . . . 4 1 . . . . . . . . Grunt 131 | . 3 2 11 . 3 . 18 . . 6 . . 6 29 23 3 . 10 3 3 1 10 . Brawler 13 | . . . . . . . . . . 2 . . . 5 4 . . . . . . 2 . Duelist 9 | . . . . . . . 2 . . . . . . 1 5 . . . 1 . . . . Protector 3 | . . . . . . . 1 . . . . . . . 1 . . . . . . 1 . Sentry 57 | . . . 6 3 4 4 6 . 2 1 . . 1 9 14 . 3 1 2 . 1 . . Demolisher 5 | . . . . . . . . . . . . . . . 1 . . . . . . 4 . Specialist 4 | . . . . . . . . . . . . . . . 3 . . . . . . 1 . Hunter 13 | . . . . . . . 1 . . . . . . 3 1 1 . 1 4 . . 2 . Programmer 10 | . . . . . . . 2 . . . . . . . 8 . . . . . . . . Heavy 1 | . . . . . . . 1 . . . . . . . . . . . . . . . . Behemoth 3 | . . . . . . . 1 . . . . . . . 2 . . . . . . . . Cetus Guard 8 | . . . . . . . . . . . . . . . . 8 . . . . . . . Enhanced Grunt 2 | . . . . . . . . . . . . 2 . . . . . . . . . . . Lightning 3 | . . . . . . . . . . . . . . . . . . 3 . . . . . Assembled 20 | . . 20 . . . . . . . . . . . . . . . . . . . . . Thug 1 | . . . . . . . . . . . . . . . 1 . . . . . . . . Savage 2 | . . . . . . . . . . . . . 2 . . . . . . . . . . Mutant 2 | . . . . . . . . . . . . . 1 . . . . . . . 1 . . Best Kill Streak 40 | . 8 20 15 27 5 8 11 . 2 9 . 3 4 22 40 6 5 10 6 3 4 16 . Combat Bots Only 36 | . 3 20 8 5 4 4 6 . 1 9 . 2 4 20 36 5 3 9 6 3 4 16 . Max Kills in Single Turn 15 | . 3 8 6 3 1 1 5 . 2 2 . 1 2 3 15 2 1 2 2 2 1 6 . Gunslinging . | . . . . . . . . . . . . . . . . . . . . . . . . Exploded 12 | . 1 8 5 3 1 . 3 . . . . . . . 12 . . . . . . 5 . Melee 1 | . . . 1 . 1 1 1 . . . . . . 1 1 . . . . . . . . Uniques/NPCs Destroyed 1 | . . . . . . . . . . . . 1 . . . . . . . . . . . Data Miner (-6/Data Miner) Combat | -11 -10 -10 -9 -8 -8 -8 -6 -6 -6 -6 -6 -6 -5 -5 -5 -5 -5 -5 -4 -4 -4 -4 -3 -------- Run | Jun Mat Min Mat Mat Sto Rec Fac Was Fac Low Low Dat Pro Fac Ext Cet Arc Hub Fac Upp Upp War Pro Damage Taken 617 | . 21 22 36 . 22 . 93 . 10 19 . . 20 84 154 27 . 46 17 6 33 7 . Core 385 | . 15 15 17 . 11 . 47 . 4 15 . . 13 51 102 18 . 29 12 4 27 5 . Absorbed by Shields 658 | . . 10 19 . 9 7 230 . 12 40 . . 15 74 128 22 . 39 13 5 29 6 . Redirected to Core 346 | . 4 14 15 . 11 . 46 . 3 15 . . 13 45 93 18 . 29 9 4 22 5 . Regen/Repaired (Parts) 53 | . . . . . . 6 29 3 1 . . . . 5 5 3 . . . . 1 . . Core Remaining (%) 99 | 100 . 100 100 . . 99 . . . . . . 100 . . . . 100 . . . . . Volleys Fired 498 | . 32 10 55 12 9 . 79 6 8 19 2 2 13 76 60 24 18 25 10 5 15 18 . Largest 2 | . 1 1 1 1 2 . 1 1 1 1 1 1 1 1 1 1 1 1 1 1 1 1 . Hottest 62 | . 50 35 35 44 58 . 62 36 36 36 36 36 36 36 43 36 36 36 36 36 36 36 . Shots Fired 499 | . 32 10 55 12 10 . 79 6 8 19 2 2 13 76 60 24 18 25 10 5 15 18 . Gun 23 | . 8 . . . 1 . 14 . . . . . . . . . . . . . . . . Cannon 464 | . 24 5 54 11 8 . 64 6 8 19 2 2 13 76 57 24 18 25 10 5 15 18 . Launcher 12 | . . 5 1 1 1 . 1 . . . . . . . 3 . . . . . . . . Special . | . . . . . . . . . . . . . . . . . . . . . . . . Kinetic 425 | . 24 5 54 11 9 . 53 . 8 19 2 2 13 76 57 24 18 25 10 5 10 . . Thermal 26 | . 8 . . . . . 12 6 . . . . . . . . . . . . . . . Explosive 12 | . . 5 1 1 1 . 1 . . . . . . . 3 . . . . . . . . Electromagnetic 36 | . . . . . . . 13 . . . . . . . . . . . . . 5 18 . Robot Hit Streak 130 | . 21 9 37 17 26 . 46 26 30 23 . 19 31 38 82 51 34 82 102 108 130 16 . Robot Miss Streak 2 | . 1 1 1 . . . 1 . 1 1 . . 1 2 1 1 . . . . . 1 . Penetration Max 2 | . . . . . . . 1 . . 1 . . 1 1 2 1 1 1 1 1 . 1 . Secondary Targets . | . . . . . . . . . . . . . . . . . . . . . . . . Shots Hit Robots 502 | . 28 7 52 13 16 9 89 6 8 14 . 3 14 74 70 21 8 24 10 3 15 18 . Core Hits 389 | . 14 21 24 9 7 3 77 3 5 10 . 3 7 57 81 15 4 17 10 3 4 15 . Critical Kills 30 | . . . . . . . 2 . . 1 . . 1 15 3 3 . 3 . 1 1 . . Critical Parts Destroyed 31 | . . . . . . . . . 1 1 . . . 11 7 4 1 3 . 1 . 2 . Critical Strikes 69 | . . . 1 . . . 2 . 1 2 . . 1 27 13 8 1 6 . 2 3 2 . Destroy 66 | . . . . . . . 2 . 1 2 . . 1 27 13 8 1 6 . 2 3 . . Blast 1 | . . . 1 . . . . . . . . . . . . . . . . . . . . Detonate 2 | . . . . . . . . . . . . . . . . . . . . . . 2 . Melee Attacks 91 | . . . 3 1 15 9 24 . 1 . . 1 2 5 15 . . 4 . . 4 7 . Impact . | . . . . . . . . . . . . . . . . . . . . . . . . Slashing . | . . . . . . . . . . . . . . . . . . . . . . . . Piercing 73 | . . . 3 1 15 9 24 . 1 . . 1 . 5 8 . . 4 . . . 2 . Sneak Attacks 40 | . . . . . 3 8 8 . . . . 1 2 1 8 . . . . . 4 5 . Combat Hostiles 6 | . . . . . 1 4 . . . . . . . . 1 . . . . . . . . Follow-up Attacks . | . . . . . . . . . . . . . . . . . . . . . . . . Damage Inflicted 81399 | . 1778 3021 3790 1193 1706 1779 11631 1059 1506 2535 . 423 1788 11609 19085 3828 1321 3778 1321 498 2375 5375 . Guns 983 | . 294 . . . . . 689 . . . . . . . . . . . . . . . . Cannons 59005 | . 1086 204 2508 669 615 . 7534 1059 1305 2535 . 210 1788 11048 12294 3828 1321 3778 1321 498 2375 3029 . Explosions 14791 | . 398 2817 898 347 110 . 1105 . 201 . . . . 321 6248 . . . . . . 2346 . Melee 6591 | . . . 384 177 981 1779 2274 . . . . 213 . 240 543 . . . . . . . . Ramming 29 | . . . . . . . 29 . . . . . . . . . . . . . . . . Kinetic 52652 | . 1086 204 2508 669 615 . 5835 . 1305 2535 . 210 1788 11048 12294 3828 1321 3778 1321 498 1809 . . Thermal 4878 | . 294 . . . . . 858 1059 . . . . . 321 . . . . . . . 2346 . Explosive 11357 | . . 2817 898 347 110 . 937 . . . . . . . 6248 . . . . . . . . Electromagnetic 5892 | . 398 . . . . . 1698 . 201 . . . . . . . . . . . 566 3029 . Impact . | . . . . . . . . . . . . . . . . . . . . . . . . Slashing . | . . . . . . . . . . . . . . . . . . . . . . . . Piercing 6591 | . . . 384 177 981 1779 2274 . . . . 213 . 240 543 . . . . . . . . Highest Corruption 8 | . 8 8 . . . . 1 1 1 1 1 1 1 . 1 1 1 . . . . . . Average Corruption 1 | . 8 8 . . . . 1 1 1 1 1 1 1 . 1 1 1 . . . . . . Corruption Purged 1 | . . . . . . . . . . . . . . . . . 1 . . . . . . Corruption Blocked . | . . . . . . . . . . . . . . . . . . . . . . . . Effects 25 | . . 5 . . . . 9 2 . 2 2 . 2 . 1 1 1 . . . . . . Message Errors 6 | . . 2 . . . . 3 1 . . . . . . . . . . . . . . . Matter Fused 7 | . . . . . . . 3 1 . 2 . . . . . 1 . . . . . . . Heat Flow Errors 1 | . . . . . . . . . . . . . 1 . . . . . . . . . . Energy Discharges 5 | . . 1 . . . . 1 . . . 1 . 1 . 1 . . . . . . . . Parts Rejected 1 | . . . . . . . 1 . . . . . . . . . . . . . . . . Data Loss (minor) 3 | . . 1 . . . . . . . . 1 . . . . . 1 . . . . . . Data Loss (major) 2 | . . 1 . . . . 1 . . . . . . . . . . . . . . . . Overload Shots . | . . . . . . . . . . . . . . . . . . . . . . . . Overflow Damage 9911 | . 188 456 316 317 257 814 1229 . 159 420 . . 232 1581 2249 317 98 439 . 10 48 781 . Projectiles 6190 | . 139 9 133 82 90 . 692 . 159 420 . . 232 1161 1719 317 98 439 . 10 48 442 . Explosions 1801 | . 49 447 183 80 . . . . . . . . . 251 452 . . . . . . 339 . Melee 1920 | . . . . 155 167 814 537 . . . . . . 169 78 . . . . . . . . Knockbacks 132 | . 5 1 9 1 7 . 10 . . 5 . . 3 31 28 6 4 16 4 2 . . . Impact . | . . . . . . . . . . . . . . . . . . . . . . . . Kinetic 109 | . 5 1 7 1 4 . 10 . . 5 . . 3 25 22 5 3 12 4 2 . . . Secondary 23 | . . . 2 . 3 . . . . . . . . 6 6 1 1 4 . . . . . Self-Inflicted Damage 27 | . . 23 . . . . . . . . . . . . 4 . . . . . . . . Shots 2 | . . 1 . . . . . . . . . . . . 1 . . . . . . . . Rammed 2 | . . . . . . . 2 . . . . . . . . . . . . . . . . Targets Rammed 2 | . . . . . . . 2 . . . . . . . . . . . . . . . . Kicked . | . . . . . . . . . . . . . . . . . . . . . . . . Crushed . | . . . . . . . . . . . . . . . . . . . . . . . . Highest Temperature . | . . . . . . . . . . . . . . . . . . . . . . . . Average Temperature . | . . . . . . . . . . . . . . . . . . . . . . . . Received Heat Transfer 502 | . . 6 80 . 54 . 49 . . . . . 27 152 89 5 . 12 4 9 15 . . Siege Activations . | . . . . . . . . . . . . . . . . . . . . . . . . Robots Corrupted 10 | . . . . . . . 4 . . . . . . . . . . . . . 1 5 . Combat Hostiles 7 | . . . . . . . 1 . . . . . . . . . . . . . 1 5 . Parts Fried 73 | . 4 . . . . . 16 . . . . . . . 4 1 . 2 . . 9 37 . Impact Corruptions 10 | . . . . . 1 . . . . . . . . 3 3 1 . 2 . . . . . Robots Melted . | . . . . . . . . . . . . . . . . . . . . . . . . Combat Hostiles . | . . . . . . . . . . . . . . . . . . . . . . . . Parts Melted 10 | . . . . . . . . . . . . . . 5 3 . . 2 . . . . . Heat Transferred 1364 | . 296 . . . . . 111 407 . . . . . 100 . . . . . . . 450 . Parts Sabotaged . | . . . . . . . . . . . . . . . . . . . . . . . . Parts Stolen . | . . . . . . . . . . . . . . . . . . . . . . . . Parts Stripped . | . . . . . . . . . . . . . . . . . . . . . . . . Power Chain Reactions 1 | . . . . . . . 1 . . . . . . . . . . . . . . . . Missiles Intercepted . | . . . . . . . . . . . . . . . . . . . . . . . . Alert | -11 -10 -10 -9 -8 -8 -8 -6 -6 -6 -6 -6 -6 -5 -5 -5 -5 -5 -5 -4 -4 -4 -4 -3 ------- Run | Jun Mat Min Mat Mat Sto Rec Fac Was Fac Low Low Dat Pro Fac Ext Cet Arc Hub Fac Upp Upp War Pro Peak Influence 6099 | . 329 326 854 525 693 428 1041 353 790 . . . . 4384 6099 4352 1985 1636 1077 . . . . Initial 3415 | . . 127 126 360 221 268 195 352 247 . . . . 81 2147 3415 1740 694 438 . . . . Average 1190 | . 172 227 543 423 457 325 660 352 434 . . . . 2121 3566 3950 1929 1022 832 . . . . Maximum Alert Level 5 | . 1 1 3 2 2 2 3 1 3 . . . . 5 5 5 5 5 3 . . . . Low Security (%) 4 | 100 42 17 5 . . . 2 . . . . . . 3 . . . 4 . . . . . Level 1 23 | . 57 82 23 48 44 61 7 100 63 . . . . . . . . . . . . . . Level 2 25 | . . . 39 51 55 38 42 . 24 . . . . 18 . . . 6 30 . . . . Level 3 20 | . . . 31 . . . 46 . 12 . . . . 4 . . . 54 69 . . . . Level 4 2 | . . . . . . . . . . . . . . 12 . . . 31 . . . . . Level 5 10 | . . . . . . . . . . . . . . 19 39 74 100 2 . . . . . High Security 12 | . . . . . . . . . . . . . . 42 60 25 . . . . . . . Max Security . | . . . . . . . . . . . . . . . . . . . . . . . . Squads Dispatched 64 | . . . 2 1 3 . 16 . 2 . . . . 17 10 2 . 8 3 . . . . Investigation 33 | . . . 2 1 . . 7 . 2 . . . . 6 2 2 . 8 3 . . . . Extermination 2 | . . . . . . . 2 . . . . . . . . . . . . . . . . Reinforcement 6 | . . . . . 1 . 5 . . . . . . . . . . . . . . . . Assault 22 | . . . . . 2 . 2 . . . . . . 10 8 . . . . . . . . Garrison 1 | . . . . . . . . . . . . . . 1 . . . . . . . . . Intercept . | . . . . . . . . . . . . . . . . . . . . . . . . Searches Triggered . | . . . . . . . . . . . . . . . . . . . . . . . . Construction Impeded . | . . . . . . . . . . . . . . . . . . . . . . . . Haulers Reinforced 2 | . . . . . . . 2 . . . . . . . . . . . . . . . . Active Scanning Responses 15 | . . . . . . . 3 . 2 . . . . 2 2 2 . 2 2 . . . . Cargo Convoy Interrupts 1 | . . . . . . . 1 . . . . . . . . . . . . . . . . Stealth | -11 -10 -10 -9 -8 -8 -8 -6 -6 -6 -6 -6 -6 -5 -5 -5 -5 -5 -5 -4 -4 -4 -4 -3 --------- Run | Jun Mat Min Mat Mat Sto Rec Fac Was Fac Low Low Dat Pro Fac Ext Cet Arc Hub Fac Upp Upp War Pro Distress Signals 6 | . . . 1 . 1 . . . . . . . . 2 . 1 . 1 . . . . . Communications Jammed 142 | . . . . . . . 13 . . . . . . . 4 89 . 35 1 . . . . Distress Signals 136 | . . . . . . . 11 . . . . . . . 4 89 . 32 . . . . . Times Spotted 395 | . 11 14 23 6 11 1 62 . 4 19 . 2 12 74 89 15 3 25 5 2 1 16 . Peak Tracking Total 29 | . 3 13 6 1 5 1 11 . 2 13 . 4 6 15 29 5 2 8 1 2 1 8 . Tactical Retreats 10 | . 1 1 . . 1 . 3 . 1 . . . . 2 . . . . . . . 1 . Traps | -11 -10 -10 -9 -8 -8 -8 -6 -6 -6 -6 -6 -6 -5 -5 -5 -5 -5 -5 -4 -4 -4 -4 -3 ------- Run | Jun Mat Min Mat Mat Sto Rec Fac Was Fac Low Low Dat Pro Fac Ext Cet Arc Hub Fac Upp Upp War Pro Traps Triggered 6 | . 1 . . . . . 3 . 2 . . . . . . . . . . . . . . Indirectly 1 | . . . . . . . . . 1 . . . . . . . . . . . . . . Trap Hack Attempts . | . . . . . . . . . . . . . . . . . . . . . . . . Triggered . | . . . . . . . . . . . . . . . . . . . . . . . . Disarmed 32 | . 4 . . . 12 . . . . . . . . . . . . 16 . . . . . Reprogrammed 22 | . 5 . . . . . 11 . . . . . . 6 . . . . . . . . . Reused 1 | . . . . . . . . . . . . . . 1 . . . . . . . . . Traps Extracted . | . . . . . . . . . . . . . . . . . . . . . . . . Installed . | . . . . . . . . . . . . . . . . . . . . . . . . Triggered 4 | . . . . . . . . . . 1 . . . 1 . . . . . . . 2 . Machines | -11 -10 -10 -9 -8 -8 -8 -6 -6 -6 -6 -6 -6 -5 -5 -5 -5 -5 -5 -4 -4 -4 -4 -3 ---------- Run | Jun Mat Min Mat Mat Sto Rec Fac Was Fac Low Low Dat Pro Fac Ext Cet Arc Hub Fac Upp Upp War Pro Machines Disabled 55 | . 1 . . . 5 . 12 . 10 4 . . . 8 7 1 1 4 1 . 1 . . Max in Single Turn 10 | . 1 . . . 2 . 9 . 10 . . . . 2 2 . 1 1 1 . 1 . . Garrison Access 2 | . . . . . . . . . 1 . . . . 1 . . . . . . . . . Network Hub 4 | . . . . . . . . . . . . . . . . . . 4 . . . . . Machines Repaired 4 | . . . . . . . . . . . . . . . . . . 4 . . . . . Machines Sabotaged . | . . . . . . . . . . . . . . . . . . . . . . . . Overloaded Fab Kills . | . . . . . . . . . . . . . . . . . . . . . . . . Hacking | -11 -10 -10 -9 -8 -8 -8 -6 -6 -6 -6 -6 -6 -5 -5 -5 -5 -5 -5 -4 -4 -4 -4 -3 --------- Run | Jun Mat Min Mat Mat Sto Rec Fac Was Fac Low Low Dat Pro Fac Ext Cet Arc Hub Fac Upp Upp War Pro Machines Accessed 76 | . 5 . 6 5 2 6 15 . 3 1 2 4 . 8 6 1 . 6 4 . 1 1 . Terminals 49 | . 5 . 4 4 2 3 9 . 1 1 . . . 4 5 1 . 6 3 . 1 . . Fabricators 7 | . . . . . . . 3 . . . . . . 3 . . . . 1 . . . . Repair Stations . | . . . . . . . . . . . . . . . . . . . . . . . . Recycling Units 12 | . . . 2 1 . 3 3 . 1 . . . . 1 1 . . . . . . . . Scanalyzers . | . . . . . . . . . . . . . . . . . . . . . . . . Garrison Access 1 | . . . . . . . . . 1 . . . . . . . . . . . . . . Total Hacks 266 | . 14 . 13 15 10 13 68 . 7 9 2 20 . 31 17 1 . 36 8 . 1 1 . Successful 250 | . 13 . 13 13 10 13 57 . 5 9 2 20 . 31 17 1 . 36 8 . 1 1 . Failed 16 | . 1 . . 2 . . 11 . 2 . . . . . . . . . . . . . . Catastrophic 1 | . . . . . . . 1 . . . . . . . . . . . . . . . . Database Lockouts . | . . . . . . . . . . . . . . . . . . . . . . . . Manual 61 | . 2 . 2 4 1 2 22 . 4 . . . . 10 5 1 . 6 2 . . . . Terminals 197 | . 14 . 8 13 10 6 52 . 5 9 . . . 21 16 1 . 36 5 . 1 . . Fabricators 22 | . . . . . . . 10 . . . . . . 9 . . . . 3 . . . . Repair Stations . | . . . . . . . . . . . . . . . . . . . . . . . . Recycling Units 23 | . . . 5 2 . 7 6 . 1 . . . . 1 1 . . . . . . . . Scanalyzers . | . . . . . . . . . . . . . . . . . . . . . . . . Garrison Access 1 | . . . . . . . . . 1 . . . . . . . . . . . . . . Terminal Hacks 194 | . 13 . 8 8 9 6 42 . 3 9 2 20 . 20 16 1 . 30 5 . 1 1 . Record 33 | . 1 . 2 4 . . 2 . . 9 . 11 . . . . . 3 . . 1 . . Part Schematic 11 | . . . . . 3 1 5 . . . . 1 . . 1 . . . . . . . . Robot Schematic 7 | . . . . . . . . . . . . 5 . 2 . . . . . . . . . Robot Analysis 2 | . . . 2 . . . . . . . . . . . . . . . . . . . . Prototype ID Bank 34 | . 2 . . . . . 11 . . . . 3 . 8 8 . . 2 . . . . . Open Door 6 | . . . . . . . . . . . 2 . . . 2 1 . . . . . 1 . Open DSF 3 | . . . . . . . 1 . . . . . . . . . . . 2 . . . . Level Access Points 2 | . . . . . . . 1 . . . . . . . . . . 1 . . . . . Branch Access Points 6 | . 1 . . 1 1 . 1 . 1 . . . . . . . . . 1 . . . . Emergency Access Points 1 | . . . . . . 1 . . . . . . . . . . . . . . . . . Machine Index 4 | . . . . . . . 1 . . . . . . . 1 . . 1 1 . . . . Terminal Index 2 | . . . . . . . 1 . . . . . . 1 . . . . . . . . . Garrison Index 1 | . . . . . . . 1 . . . . . . . . . . . . . . . . Alert Level 4 | . . . . 1 . . 1 . . . . . . . . . . 2 . . . . . Unreport Threat 18 | . . . . 1 . . 5 . . . . . . . . . . 12 . . . . . Locate Traps 4 | . . . . . . . 2 . . . . . . 1 . . . 1 . . . . . Disarm Traps 8 | . 2 . . . 3 . . . . . . . . . . . . 3 . . . . . Reprogram Traps 7 | . 3 . . . . . 2 . . . . . . 2 . . . . . . . . . Dispatch Records 1 | . . . 1 . . . . . . . . . . . . . . . . . . . . Security Status 3 | . . . 1 . . . . . . . . . . . . . . 1 1 . . . . Patrol Status 2 | . . . . . . . 1 . . . . . . 1 . . . . . . . . . Transport Status 3 | . 1 . . . . 1 . . . . . . . . . . . 1 . . . . . Recall Investigation 3 | . . . . . . . 1 . 1 . . . . 1 . . . . . . . . . Recall Reinforcements 5 | . . . . . . . 2 . 1 . . . . 1 . . . 1 . . . . . Recall Assault 1 | . . . . . . . . . . . . . . . . . . 1 . . . . . Hauler Manifests 9 | . 2 . 1 1 1 1 . . . . . . . 1 2 . . . . . . . . Registered Components 5 | . . . 1 . . 1 1 . . . . . . 1 1 . . . . . . . . Registered Prototypes 4 | . . . . . . . 2 . . . . . . . 1 . . 1 . . . . . Zone Layout 5 | . 1 . . . 1 1 1 . . . . . . 1 . . . . . . . . . Fabricator Hacks 15 | . . . . . . . 7 . . . . . . 6 . . . . 2 . . . . Network Status 1 | . . . . . . . 1 . . . . . . . . . . . . . . . . Load Schematic 7 | . . . . . . . 3 . . . . . . 3 . . . . 1 . . . . Build 7 | . . . . . . . 3 . . . . . . 3 . . . . 1 . . . . Repair Station Hacks . | . . . . . . . . . . . . . . . . . . . . . . . . Recycling Unit Hacks 16 | . . . 3 1 . 5 4 . 1 . . . . 1 1 . . . . . . . . Report Inventory 1 | . . . . 1 . . . . . . . . . . . . . . . . . . . Retrieve Components 15 | . . . 3 . . 5 4 . 1 . . . . 1 1 . . . . . . . . Scanalyzer . | . . . . . . . . . . . . . . . . . . . . . . . . Garrison Access Hacks 1 | . . . . . . . . . 1 . . . . . . . . . . . . . . Seal Access 1 | . . . . . . . . . 1 . . . . . . . . . . . . . . Unauthorized Hacks 24 | . . . 2 4 1 2 4 . . . . . . 4 . . . 6 1 . . . . Terminals 11 | . . . . 3 1 . . . . . . . . 1 . . . 6 . . . . . Assimilate 5 | . . . . 3 1 . . . . . . . . 1 . . . . . . . . . Sabotage 6 | . . . . . . . . . . . . . . . . . . 6 . . . . . Fabricators 7 | . . . . . . . 3 . . . . . . 3 . . . . 1 . . . . Prioritize 7 | . . . . . . . 3 . . . . . . 3 . . . . 1 . . . . Repair Stations . | . . . . . . . . . . . . . . . . . . . . . . . . Recycling Units 6 | . . . 2 1 . 2 1 . . . . . . . . . . . . . . . . Mask 1 | . . . . . . . 1 . . . . . . . . . . . . . . . . Tunnel 5 | . . . 2 1 . 2 . . . . . . . . . . . . . . . . . Scanalyzers . | . . . . . . . . . . . . . . . . . . . . . . . . Garrison Access . | . . . . . . . . . . . . . . . . . . . . . . . . Data Cores Recovered 4 | . 1 . 1 1 . . . . . . . . . . 1 . . . . . . . . Used 2 | . 1 . 1 . . . . . . . . . . . . . . . . . . . . Hacking Detections 26 | . 3 . 1 3 1 1 7 . . . . . . 4 2 . . 2 2 . . . . Full Trace Events 8 | . . . . . . . 4 . . . . . . 3 . . . . 1 . . . . Feedback Events 1 | . . . . . . . 1 . . . . . . . . . . . . . . . . Corruption 1 | . . . . . . . 1 . . . . . . . . . . . . . . . . Feedback Blocked . | . . . . . . . . . . . . . . . . . . . . . . . . Robot Schematics Acquired 7 | . . . . . . . . . . . . 5 . 2 . . . . . . . . . Robots Built . | . . . . . . . . . . . . . . . . . . . . . . . . Authchips . | . . . . . . . . . . . . . . . . . . . . . . . . Time . | . . . . . . . . . . . . . . . . . . . . . . . . Total Robot Build Rating . | . . . . . . . . . . . . . . . . . . . . . . . . Part Schematics Acquired 11 | . . . . . 3 1 5 . . . . 1 . . 1 . . . . . . . . Parts Built 9 | . . . . . . . 5 . . . . . . 2 . . . . 2 . . . . Authchips . | . . . . . . . . . . . . . . . . . . . . . . . . Time 246 | . . . . . . . 116 . . . . . . 101 . . . . 29 . . . . Total Part Build Rating 51 | . . . . . . . 27 . . . . . . 10 . . . . 14 . . . . Parts Repaired . | . . . . . . . . . . . . . . . . . . . . . . . . Time . | . . . . . . . . . . . . . . . . . . . . . . . . Parts Recycled . | . . . . . . . . . . . . . . . . . . . . . . . . Recycled Matter . | . . . . . . . . . . . . . . . . . . . . . . . . Retrieved Matter . | . . . . . . . . . . . . . . . . . . . . . . . . Retrieved Components 22 | . . . 1 . . 13 3 . 3 . . . . 2 . . . . . . . . . Parts Scanalyzed . | . . . . . . . . . . . . . . . . . . . . . . . . Part Schematics Acquired . | . . . . . . . . . . . . . . . . . . . . . . . . Parts Damaged . | . . . . . . . . . . . . . . . . . . . . . . . . Bothacking | -11 -10 -10 -9 -8 -8 -8 -6 -6 -6 -6 -6 -6 -5 -5 -5 -5 -5 -5 -4 -4 -4 -4 -3 ------------ Run | Jun Mat Min Mat Mat Sto Rec Fac Was Fac Low Low Dat Pro Fac Ext Cet Arc Hub Fac Upp Upp War Pro Used RIF Installer . | . . . . . . . . . . . . . . . . . . . . . . . . Robots Hacked . | . . . . . . . . . . . . . . . . . . . . . . . . Non-combat . | . . . . . . . . . . . . . . . . . . . . . . . . Combat . | . . . . . . . . . . . . . . . . . . . . . . . . Robot Hacks Applied . | . . . . . . . . . . . . . . . . . . . . . . . . Relay Couplers Released 1 | . . . . . . . . . . . . . . 1 . . . . . . . . . Machine Destruction 1 | . . . . . . . . . . . . . . 1 . . . . . . . . . Fabnet Peak Effective % . | . . . . . . . . . . . . . . . . . . . . . . . . Robots Rewired 19 | . . . . . . . . . . . . . 2 . 8 . . . . . 4 5 . Allies Hacked 2 | . . . . . . . . . . . . . . 1 1 . . . . . . . . Hacks Repelled . | . . . . . . . . . . . . . . . . . . . . . . . . Allies | -11 -10 -10 -9 -8 -8 -8 -6 -6 -6 -6 -6 -6 -5 -5 -5 -5 -5 -5 -4 -4 -4 -4 -3 -------- Run | Jun Mat Min Mat Mat Sto Rec Fac Was Fac Low Low Dat Pro Fac Ext Cet Arc Hub Fac Upp Upp War Pro Total Allies 63 | . . . . 2 3 . . 20 . . . . 2 2 20 5 . . . . 4 5 . Largest Group 28 | . . . . 2 5 2 2 20 20 15 14 14 15 15 28 28 27 24 15 13 17 22 . Highest-Rated Group 1439 | . . . . 36 108 36 36 785 785 656 606 606 614 596 1123 1439 1343 991 677 536 688 985 . Highest-Rated Ally 159 | . . . . 26 31 26 26 50 50 50 46 46 46 99 159 159 159 99 97 96 96 96 . Total Orders . | . . . . . . . . . . . . . . . . . . . . . . . . Ally Attacks 584 | . . . . . 29 . . . 10 36 . 22 15 179 108 47 19 114 . . 1 4 . Total Damage 15102 | . . . . . 496 . . . 346 1313 . 514 466 4280 2763 919 527 3282 . . 58 138 . Kills 91 | . . . . . 5 . . . 2 6 . 2 3 31 17 4 3 17 . . 1 . . Allies Corrupted 4 | . . . . . . . . . . . . . . 1 . . . 2 . . . 1 . Allies Melted 1 | . . . . . 1 . . . . . . . . . . . . . . . . . . Intel | -11 -10 -10 -9 -8 -8 -8 -6 -6 -6 -6 -6 -6 -5 -5 -5 -5 -5 -5 -4 -4 -4 -4 -3 ------- Run | Jun Mat Min Mat Mat Sto Rec Fac Was Fac Low Low Dat Pro Fac Ext Cet Arc Hub Fac Upp Upp War Pro Robot Analysis Total 133 | . . . 2 . . . . . . . . 131 . . . . . . . . . . . Derelict Logs Recovered 8 | . . 2 . . . . . . . . 1 . 2 . . . . . . 2 1 . . Drone Launches . | . . . . . . . . . . . . . . . . . . . . . . . . Drone Recoveries . | . . . . . . . . . . . . . . . . . . . . . . . . Exploration | -11 -10 -10 -9 -8 -8 -8 -6 -6 -6 -6 -6 -6 -5 -5 -5 -5 -5 -5 -4 -4 -4 -4 -3 ------------- Run | Jun Mat Min Mat Mat Sto Rec Fac Was Fac Low Low Dat Pro Fac Ext Cet Arc Hub Fac Upp Upp War Pro Turns Passed 7126 | 28 208 102 238 114 103 544 1454 315 145 259 453 112 308 777 448 194 86 187 226 197 326 302 . Spaces Moved 9255 | 16 315 373 443 368 206 470 1834 332 179 370 555 170 302 912 428 248 69 177 299 269 410 510 . Core 746 | 1 110 . . . . . 108 85 94 . . . . 348 . . . . . . . . . Treads 2583 | . . . . . . 104 1533 . 6 . . . . 39 113 248 69 177 294 . . . . Legs 15 | 15 . . . . . . . . . . . . . . . . . . . . . . . Wheels . | . . . . . . . . . . . . . . . . . . . . . . . . Hover 1415 | . . . . . . . . . . . . . . 11 210 . . . 5 269 410 510 . Flight 4496 | . 205 373 443 368 206 366 193 247 79 370 555 170 302 514 105 . . . . . . . . Fastest Speed 14 | 50 16 16 16 16 14 14 43 50 50 51 51 51 51 50 34 46 46 46 36 36 36 36 . Average Speed 43 | 115 32 16 16 16 14 29 52 79 54 51 51 51 51 54 56 46 46 46 45 36 36 36 . Slowest Speed 160 | 120 50 16 16 16 23 43 160 90 80 51 51 51 51 127 69 46 46 46 46 36 36 36 . Overloaded Moves . | . . . . . . . . . . . . . . . . . . . . . . . . Propulsion Burnouts . | . . . . . . . . . . . . . . . . . . . . . . . . Robots Hopped 4 | . . 2 . 1 . . . . . . 1 . . . . . . . . . . . . Cave-ins Triggered . | . . . . . . . . . . . . . . . . . . . . . . . . Exploration Rate (%) 57 | 3 66 95 54 43 45 91 56 95 10 67 71 83 60 30 78 78 91 32 10 59 69 85 3 Regions Visited 23 Branch Regions 15 Pre-discovered Areas 29 | . . 1 2 1 . 2 . . . . . 22 . . . . . . . 1 . . . Known Exits Taken 20 | . 1 1 1 1 1 1 . . 1 1 1 1 1 1 1 1 1 1 1 1 1 1 . Unknown Exits Taken 1 | 1 . . . . . . . . . . . . . . . . . . . . . . . Scrap Searched 26 | . . 2 . . . . . . . 12 4 . 3 . . . . . . 2 3 . . Spaces Dug 126 | . 2 . . . 4 . 16 . 1 11 7 . 2 6 5 12 27 6 . 3 9 15 . Terrain Destroyed 671 | . 5 38 14 12 37 . 86 1 6 33 7 3 11 150 69 35 44 38 13 10 15 44 . Melee 24 | . . . . . 4 . 9 . 1 . . . . 3 1 . . 4 . . . 2 . Projectile 448 | . 3 1 5 . 1 . 41 1 5 33 7 3 11 99 51 35 44 34 13 10 15 36 . AOE 199 | . 2 37 9 12 32 . 36 . . . . . . 48 17 . . . . . . 6 . Terrain Rammed . | . . . . . . . . . . . . . . . . . . . . . . . . Walls Destroyed . | . . . . . . . . . . . . . . . . . . . . . . . . Machines Disabled . | . . . . . . . . . . . . . . . . . . . . . . . . Actions | -11 -10 -10 -9 -8 -8 -8 -6 -6 -6 -6 -6 -6 -5 -5 -5 -5 -5 -5 -4 -4 -4 -4 -3 --------- Run | Jun Mat Min Mat Mat Sto Rec Fac Was Fac Low Low Dat Pro Fac Ext Cet Arc Hub Fac Upp Upp War Pro Total 11961 | 24 389 401 549 409 256 876 2254 380 222 431 723 192 449 1157 597 317 116 267 383 366 583 620 . Wait 1774 | . 1 15 9 17 2 374 229 41 32 39 155 20 125 129 72 41 24 58 71 86 150 84 . Move 9225 | 15 314 368 442 365 205 469 1834 331 178 369 552 169 301 911 427 247 68 176 298 268 409 509 . Hop 4 | . . 2 . 1 . . . . . . 1 . . . . . . . . . . . . Pick Up 49 | 5 12 . 2 2 1 1 13 1 . 1 1 . 1 3 2 2 1 . 1 . . . . Fast Attach 84 | 3 14 2 16 2 7 1 23 . 1 . 5 . . 7 . . 2 . . 1 . . . Attach 9 | . . . . . . . . . . . . . 1 2 4 . . . . . 1 1 . Detach 16 | 1 1 . 1 . 1 . 4 . . . . . 1 1 3 . . . . 1 1 1 . Swap 10 | . . . 2 3 2 . 1 . . . . . . 2 . . . . . . . . . Drop 127 | . 11 . 12 6 10 22 37 1 1 1 7 . 1 9 3 1 3 . 1 1 . . . Fire 498 | . 32 10 55 12 9 . 79 6 8 19 2 2 13 76 60 24 18 25 10 5 15 18 . Melee 91 | . . . 3 1 15 9 24 . 1 . . 1 2 5 15 . . 4 . . 4 7 . Ram . | . . . . . . . . . . . . . . . . . . . . . . . . Kick . | . . . . . . . . . . . . . . . . . . . . . . . . Crush 2 | . . . . . . . 2 . . . . . . . . . . . . . . . . Escape Stasis . | . . . . . . . . . . . . . . . . . . . . . . . . Rewire 2 | . . . . . . . . . . . . . . . 2 . . . . . . . . Trap . | . . . . . . . . . . . . . . . . . . . . . . . . Miscellaneous 70 | . 4 4 7 . 4 . 8 . 1 2 . . 4 12 9 2 . 4 2 4 3 . . Route ------- -11/Junkyard -10/Materials (discovered 4 exits: *Mat x2 / *Min x2) -10/Mines (discovered 2 exits: *Mat x2) -9/Materials (discovered 3 exits: *Mat x3) -8/Materials (discovered 3 exits: [Fac] / *Sto x2) -8/Storage -8/Recycling -6/Factory (discovered 6 exits: *Fac x4 / *Low x2) -6/Waste -6/Factory (discovered 2 exits: *Low x2) -6/Lower Caves -6/Lower Caves (discovered 2 exits: *Fac / *Dat) -6/Data Miner -5/Proximity Caves -5/Factory (discovered 3 exits: *Fac x2 / *Ext) -5/Extension (discovered 3 exits: *Fac x2 / *Cet) -5/Cetus (discovered 2 exits: *Fac / *Arc) -5/Archives (discovered 3 exits: *Fac / *Hub x2) -5/Hub_04(d) (discovered 4 exits: *Fac x4) -4/Factory (discovered 2 exits: *Upp x2) -4/Upper Caves -4/Upper Caves (discovered 2 exits: *Res / *War) -4/Warlord -3/Proximity Caves History --------- Turn | Location | Event 1 | -11/Junkyard | Upgraded with Utility slot (x1) 1 | -11/Junkyard | Upgraded with Power slot (x3) 1 | -11/Junkyard | Upgraded with Propulsion slot (x5) 1 | -11/Junkyard | Upgraded with Weapon slot (x3) 1 | -11/Junkyard | Upgraded with Propulsion slot (x2) 1 | -11/Junkyard | Upgraded with Utility slot (x5) 1 | -11/Junkyard | Upgraded with Utility slot (x3) 1 | -11/Junkyard | Discovered new exit (range 1) 29 | -11/Junkyard | Entered Materials 30 | -10/Materials | Discovered new exit (range 22) 85 | -10/Materials | Discovered new exit (range 13) 151 | -10/Materials | Discovered new exit (range 13) 187 | -10/Materials | Discovered new exit (range 13) 229 | -10/Materials | Identified exit to Mines 237 | -10/Materials | Entered Mines 239 | -10/Mines | Reached level 2 243 | -10/Mines | Discovered new exit (range 15) 249 | -10/Mines | Received a Rocket Launcher from a helpful Derelict 273 | -10/Mines | Assembled infested the area 274 | -10/Mines | Identified exit to Materials 301 | -10/Mines | Destroyed 20 combat bots 306 | -10/Mines | Learned location of 1 exit from Materials 331 | -10/Mines | Learned location of Zion (-7) 334 | -10/Mines | A weapon hastily lodged in a ceiling crevice suddenly fell to the ground 336 | -10/Mines | Discovered exit to Materials (range 14) 339 | -10/Mines | Entered Materials 340 | -9/Materials | Identified exit to Materials 341 | -9/Materials | Reached level 3 353 | -9/Materials | Reached level 4 404 | -9/Materials | Destroyed 8 combat bots 442 | -9/Materials | Discovered exit to Materials (range 10) 473 | -9/Materials | Reached level 5 567 | -9/Materials | Discovered exit to Materials (range 10) 577 | -9/Materials | Entered another Materials area 579 | -8/Materials | Reached level 6 619 | -8/Materials | Reached level 7 639 | -8/Materials | Build established: Wizard-Ninja 647 | -8/Materials | Discovered new exit (range 6) 650 | -8/Materials | Identified exit to Storage 665 | -8/Materials | Discovered new exit (range 13) 691 | -8/Materials | Entered Storage 691 | -8/Storage | Accompanied by 2 allies 693 | -8/Storage | Reached level 8 693 | -8/Storage | Met a pair of Derelict thieves 739 | -8/Storage | Identified exit to Recycling 769 | -8/Storage | Reached level 9 794 | -8/Storage | Entered Recycling 794 | -8/Recycling | Accompanied by 2 allies 796 | -8/Recycling | Reached level 10 796 | -8/Recycling | Found Scrap Engine 948 | -8/Recycling | Discovered new exit (range 27) 1143 | -8/Recycling | Identified exit to Factory 1338 | -8/Recycling | Entered Factory 1338 | -6/Factory | Accompanied by 2 allies 1340 | -6/Factory | Reached level 11 1368 | -6/Factory | Identified exit to DSF 1462 | -6/Factory | Discovered new exit (range 14) 1466 | -6/Factory | Identified exit to Lower Caves 1470 | -6/Factory | Reached level 12 1505 | -6/Factory | Discovered exit to Lower Caves (range 12) 1513 | -6/Factory | Build established: Wizard-Assassin 1522 | -6/Factory | Discovered new exit (range 11) 1544 | -6/Factory | Identified exit to Factory 1615 | -6/Factory | Discovered exit to Factory (range 13) 1657 | -6/Factory | Reached level 13 1784 | -6/Factory | Spotted B-75 Beast 1793 | -6/Factory | Destroyed B-75 Beast 1907 | -6/Factory | Cargo convoy interrupted 1923 | -6/Factory | Discovered exit to Factory (range 21) 2038 | -6/Factory | First assault squad dispatched 2040 | -6/Factory | Found Prototype Device 2040 | -6/Factory | Identified Active Sensor Suite 2065 | -6/Factory | Reached level 14 2233 | -6/Factory | Fabricated Force Rifle? 2254 | -6/Factory | Reached level 15 2414 | -6/Factory | Fabricated Imp. Weapon Cycler? 2567 | -6/Factory | Fabricated F-cell Engine? 2620 | -6/Factory | Reached level 16 2792 | -6/Factory | Manually triggered Chute Trap 2792 | -6/Factory | Sucked down chute 2792 | -6/Factory | Entered Waste 2793 | -6/Waste | Joined by Warlord forces that had cleared the area 2935 | -6/Waste | Build established: Wizard-Ninja 2952 | -6/Waste | Discovered new exit (range 27) 3066 | -6/Waste | Identified exit to Factory 3107 | -6/Waste | Entered Factory 3107 | -6/Factory | Accompanied by 20 allies 3234 | -6/Factory | Reached level 17 3252 | -6/Factory | Entered Lower Caves 3252 | -6/Lower Caves | Accompanied by 15 allies 3310 | -6/Lower Caves | Attracted the attention of an 0b10 base 3310 | -6/Lower Caves | Learned Armory security intel 3310 | -6/Lower Caves | Learned Armory emergency access door positions 3310 | -6/Lower Caves | Learned Extension trap positions 3310 | -6/Lower Caves | Learned 6 Proximity Caves zone layouts 3310 | -6/Lower Caves | Learned 6 Upper Caves zone layouts 3313 | -6/Lower Caves | Reached level 18 3349 | -6/Lower Caves | Destroyed 9 combat bots 3413 | -6/Lower Caves | Discovered new exit (range 11) 3470 | -6/Lower Caves | Identified exit to Lower Caves 3511 | -6/Lower Caves | Entered another Lower Caves area 3511 | -6/Lower Caves | Accompanied by 14 allies 3513 | -6/Lower Caves | Reached level 19 3536 | -6/Lower Caves | Discovered exit to Factory (range 16) 3538 | -6/Lower Caves | Encountered a Warlord checkpoint 3688 | -6/Lower Caves | Found Prototype Device 3688 | -6/Lower Caves | Identified Heart of Steel 3852 | -6/Lower Caves | Identified exit to Data Miner 3964 | -6/Lower Caves | Entered Data Miner 3964 | -6/Data Miner | Accompanied by 14 allies 3964 | -6/Data Miner | Discovered new exit (range 6) 3968 | -6/Data Miner | Met Data Miner 3983 | -6/Data Miner | Learned location of Section 7 (-2) 3983 | -6/Data Miner | Acquired the access code to Warlord's prototype stash 3993 | -6/Data Miner | Received God Mode back door access code from Data Miner 4033 | -6/Data Miner | Destroyed Data Miner 4035 | -6/Data Miner | Interfaced with the Data Conduit 4051 | -6/Data Miner | Identified exit to Proximity Caves 4076 | -6/Data Miner | Entered Proximity Caves 4076 | -5/Proximity Caves | Accompanied by 13 allies 4078 | -5/Proximity Caves | Reached level 20 4124 | -5/Proximity Caves | Learned location of 1 exit from Factory 4167 | -5/Proximity Caves | Attracted the attention of an 0b10 checkpoint 4202 | -5/Proximity Caves | Learned 4 Factory zone layouts 4384 | -5/Proximity Caves | Entered Factory 4384 | -5/Factory | Accompanied by 14 allies 4385 | -5/Factory | Identified exit to Extension 4386 | -5/Factory | Reached level 21 4387 | -5/Factory | Loaded intel: 257 machine locations 4439 | -5/Factory | Reached level 22 4650 | -5/Factory | Discovered new exit (range 15) 4684 | -5/Factory | First assault squad dispatched 4690 | -5/Factory | Identified exit to Factory 4700 | -5/Factory | Reached level 23 4720 | -5/Factory | Garrison activated, responded to threat 4753 | -5/Factory | Destroyed 13 combat bots 4759 | -5/Factory | Build established: Wizard-Scout 4784 | -5/Factory | Fabricated F-cell Engine? 4834 | -5/Factory | High security lockdown imminent 4865 | -5/Factory | Fabricated F-cell Engine (x1) 4875 | -5/Factory | Heart of Steel transformed into Warbot 4875 | -5/Factory | Reached level 24 4909 | -5/Factory | Discovered exit to Factory (range 15) 4914 | -5/Factory | High security lockdown engaged 5124 | -5/Factory | Destroyed 20 combat bots 5161 | -5/Factory | Entered Extension 5161 | -5/Extension | Accompanied by 11 allies (Warbot) 5162 | -5/Extension | Loaded intel: 23 trap records 5163 | -5/Extension | Loaded intel: 42 machine locations 5163 | -5/Extension | Reached level 25 5188 | -5/Extension | Rescued a captive Derelict 5189 | -5/Extension | Rescued a captive Derelict 5289 | -5/Extension | Rescued a captive Derelict 5289 | -5/Extension | Rescued a captive Derelict 5295 | -5/Extension | Spotted B-75 Beast 5300 | -5/Extension | Rescued a captive Derelict 5301 | -5/Extension | Rescued a captive Derelict 5315 | -5/Extension | Discovered exit to Factory (range 20) 5318 | -5/Extension | Spotted B-75 Beast 5325 | -5/Extension | Destroyed B-75 Beast 5330 | -5/Extension | Destroyed B-75 Beast 5338 | -5/Extension | High security lockdown imminent 5359 | -5/Extension | Destroyed 11 combat bots 5406 | -5/Extension | Rescued a captive Derelict 5409 | -5/Extension | Rescued a captive Derelict 5418 | -5/Extension | High security lockdown engaged 5431 | -5/Extension | Rescued a captive Derelict 5432 | -5/Extension | Rescued a captive Derelict 5457 | -5/Extension | Rescued A7 5510 | -5/Extension | Rescued a captive Derelict 5518 | -5/Extension | Rescued a captive Derelict 5527 | -5/Extension | Destroyed 19 combat bots 5530 | -5/Extension | Discovered new exit (range 18) 5531 | -5/Extension | Discovered exit to Factory (range 20) 5539 | -5/Extension | Reached level 26 5552 | -5/Extension | Identified exit to Cetus 5555 | -5/Extension | Disrupted transfer network 5582 | -5/Extension | Destroyed 36 combat bots 5609 | -5/Extension | Entered Cetus 5609 | -5/Cetus | Accompanied by 26 allies (incl. A7, Warbot) 5610 | -5/Cetus | Loaded intel: 24 machine locations 5611 | -5/Cetus | Spotted Cetus Guard 5611 | -5/Cetus | Spotted Cetus Guard 5613 | -5/Cetus | Spotted Cetus Guard 5613 | -5/Cetus | Spotted Cetus Guard 5614 | -5/Cetus | Acquired a Cetus Manufacturing Module code from A7 5616 | -5/Cetus | Destroyed Cetus Guard 5618 | -5/Cetus | Destroyed Cetus Guard 5623 | -5/Cetus | Destroyed Cetus Guard 5630 | -5/Cetus | Destroyed Cetus Guard 5643 | -5/Cetus | Started Cetus Manufacturing Module 5647 | -5/Cetus | Escorted A7 to Cetus Mainframe 5668 | -5/Cetus | Manufactured an Enhanced Grunt 5693 | -5/Cetus | Manufactured an Enhanced Grunt 5703 | -5/Cetus | Discovered new exit (range 25) 5712 | -5/Cetus | Discovered exit to Factory (range 27) 5712 | -5/Cetus | Spotted Cetus Guard 5712 | -5/Cetus | Spotted Cetus Guard 5712 | -5/Cetus | Spotted Cetus Guard 5712 | -5/Cetus | Spotted Cetus Guard 5717 | -5/Cetus | Build established: Wizard-Assassin 5718 | -5/Cetus | Manufactured an Enhanced Grunt 5718 | -5/Cetus | Destroyed Cetus Guard 5720 | -5/Cetus | Destroyed Cetus Guard 5724 | -5/Cetus | Destroyed Cetus Guard 5730 | -5/Cetus | Destroyed Cetus Guard 5735 | -5/Cetus | Met Revision 17 5743 | -5/Cetus | Manufactured an Enhanced Grunt 5754 | -5/Cetus | High security lockdown imminent 5761 | -5/Cetus | Identified exit to Archives 5768 | -5/Cetus | Manufactured an Enhanced Grunt 5803 | -5/Cetus | Entered Archives 5803 | -5/Archives | Accompanied by 27 allies (incl. A7, Warbot) 5804 | -5/Archives | Loaded intel: 8 machine locations 5808 | -5/Archives | Received a hacking code to weaken MAIN.C 5812 | -5/Archives | Discovered exit to Factory (range 20) 5813 | -5/Archives | Discovered new exit (range 22) 5819 | -5/Archives | Discovered new exit (range 21) 5848 | -5/Archives | Identified exit to Hub_04(d) 5889 | -5/Archives | Entered Hub_04(d) 5889 | -5/Hub_04(d) | Accompanied by 24 allies (Warbot) 5890 | -5/Hub_04(d) | Loaded intel: 83 machine locations 5895 | -5/Hub_04(d) | Network Hub disabled 5912 | -5/Hub_04(d) | Spotted Lightning 5919 | -5/Hub_04(d) | Destroyed Lightning 5920 | -5/Hub_04(d) | Spotted Lightning 5920 | -5/Hub_04(d) | Spotted Lightning 5924 | -5/Hub_04(d) | Destroyed Lightning 5932 | -5/Hub_04(d) | Spotted Lightning 5937 | -5/Hub_04(d) | Destroyed Lightning 5942 | -5/Hub_04(d) | Network Hub disabled 5986 | -5/Hub_04(d) | Network Hub disabled 5990 | -5/Hub_04(d) | Network Hub disabled 6004 | -5/Hub_04(d) | Reached level 27 6035 | -5/Hub_04(d) | Destroyed 9 combat bots 6076 | -5/Hub_04(d) | Entered Factory 6076 | -4/Factory | Accompanied by 15 allies (Warbot) 6077 | -4/Factory | Loaded intel: 271 machine locations 6113 | -4/Factory | Fabricated Imp. Linear Gravjet (x2) 6170 | -4/Factory | Identified exit to DSF 6179 | -4/Factory | Identified exit to Upper Caves 6241 | -4/Factory | Identified exit to DSF 6302 | -4/Factory | Entered Upper Caves 6302 | -4/Upper Caves | Accompanied by 13 allies 6303 | -4/Upper Caves | Identified exit to Upper Caves 6304 | -4/Upper Caves | Learned Research garrison access intel 6308 | -4/Upper Caves | Encountered a Warlord checkpoint 6499 | -4/Upper Caves | Entered another Upper Caves area 6499 | -4/Upper Caves | Accompanied by 13 allies 6500 | -4/Upper Caves | Discovered new exit (range 11) 6505 | -4/Upper Caves | Identified exit to Research 6533 | -4/Upper Caves | Spotted B-86 Titan 6546 | -4/Upper Caves | Allies destroyed B-86 Titan 6597 | -4/Upper Caves | Build established: Wizard-Construct 6682 | -4/Upper Caves | Learned Research interactive machine intel 6732 | -4/Upper Caves | Discovered new exit (range 19) 6755 | -4/Upper Caves | Identified exit to Warlord 6825 | -4/Upper Caves | Entered Warlord 6825 | -4/Warlord | Accompanied by 17 allies 6832 | -4/Warlord | Discovered new exit (range 20) 6955 | -4/Warlord | Visited the Vortex Lab 6976 | -4/Warlord | Warlord's base attacked by MAIN.C 6982 | -4/Warlord | Met Warlord 7031 | -4/Warlord | Destroyed 8 combat bots 7079 | -4/Warlord | Reached level 28 7096 | -4/Warlord | Identified exit to Proximity Caves 7109 | -4/Warlord | Destroyed 16 combat bots 7127 | -4/Warlord | Entered Proximity Caves 7127 | -3/Proximity Caves | Accompanied by 21 allies 7127 | -3/Proximity Caves | Self-destructed Last Messages --------------- 07086_ EMDS Slug penetrates I-47 Archangel. 07086_ Power Amplifier fried. 07086_ Com. Battery fried. 07086_ Com. Wheel fried. 07086_ Point Defense System fried. 07086_ Com. Battery fried. 07086_ Energy Well fried. 07086_ Imp. Remote Force Field fried. 07086_ Com. Wheel fried. 07086_ I-47 Archangel destroyed. 07087_ Slug penetrates G-67 Veteran. 07088_ EMDS Slug penetrates G-67 Veteran. 07088_ Destroyed Flexi-carbon Leg. 07088_ Destroyed Adv. Heat Sink. 07088_ Field Laser fried. 07088_ Adv. Heat Sink fried. 07088_ G-67 Veteran destroyed. 07096_ EXIT=IDENTIFIED: PROXIMITY CAVES LOCATION=PROXIMITY CAVES GOAL=ESCAPE Map ----- +----------------------------------------------------+ | ???????????????????????????????????????????????? | | ???????????????????????????????????????????????? | | ???????????????????????????????????????????????? | | ???????????????????????????????????????????????? | | ???????????????????????????????????????????????? | | ???????????????????????????????????????????????? | | ???????????????????????????????????????????????? | | ???????????????????????????????????????????????? | | ???????????????????????????????????????????????? | | ???????????????????????????????????????????????? | | ?????????????????####??????????????????????????? | | ???????????????### ??????????????????????????? | | ??????????????## ??????????????????????????? | | ??????????????# ??????????????????????????? | | ??????????????# ##????????????????????????? | | ??????????????# ????????????????????????? | | ??????????????? ????????????????????????? | | ???????????????? ????????????????????????? | | ????????????????# l????????????????????????? | | ????????????????# ????????????????????????? | | ????????????????? ##??????????????????????? | | ?????????????????? #??????????????????????? | | ??????????????????? l #??????????????????????? | | ????????????????????# ll#??????????????????????? | | ?????????????????????#hl##?????????????????????? | | ?????????????????????#g@g#?????????????????????? | | ????????????????????# gxg #????????????????????? | | ???????????????????# xgh m ???????????????????? | | ??????????????????# l Y g ?????????????????? | | ??????????????????# m #???????????????? | | ??????????????????##### #???????????????? | | ??????????????????????# # ##???????????????? | | ??????????????????????# ## ##????????????????? | | ??????????????????????# h#?###?????????????????? | | ?????????????????????? #?????????????????????? | | ??????????????????????# #?????????????????????? | | ?????????????????????? ?????????????????????? | | ?????????????????????? ?????????????????????? | | ?????????????????????? ?????????????????????? | | ?????????????????????? #?????????????????????? | | ?????????????????????? ##?????????????????????? | | ?????????????????????? #???????????????????????? | | ??????????????????????#????????????????????????? | | ???????????????????????????????????????????????? | | ???????????????????????????????????????????????? | | ???????????????????????????????????????????????? | | ???????????????????????????????????????????????? | | ???????????????????????????????????????????????? | | ???????????????????????????????????????????????? | | ???????????????????????????????????????????????? | +----------------------------------------------------+ Best States ------------- Heat Dissipation 310 Energy Generation 162 Energy Capacity 3229 Matter Stores 1500 Matter Capacity 1500 Sight Range 28 Robot Scan Range 276 Terrain Scan Range 20 Terrain Scan Density 4010 ECM Strength 1 Jamming Range 14 Corruption Block 15 Armor Coverage 600 Resistance: KI 75 Resistance: TH 75 Resistance: EX 75 Resistance: EM 75 Resistance: I 75 Resistance: S 75 Resistance: P 75 Weapon Cycling 20 Evasion (%) 67 Core Analysis 6 Recoil Reduction 5 Kinecelleration 30 Offensive Hacking 130 Defensive Hacking 130 Item Schematics ----------------- Fusion Compressor | -8/Storage | Hacked Carbide Saw | -8/Storage | Hacked Angular Momentum Engine | -8/Storage | Hacked Hvy. Missile Launcher | -8/Recycling | Hacked Imp. Linear Gravjet | -6/Factory | Hacked Imp. Kinecellerator | -6/Factory | Hacked Force Rifle | -6/Factory | Hacked F-cell Engine | -6/Factory | Hacked Imp. Weapon Cycler | -6/Factory | Hacked Combat Drone Bay | -6/Data Miner | Free Adv. VSS Leg | -5/Extension | Hacked Robot Schematics ------------------ B-60 Warrior | -6/Data Miner | Free G-50 Soldier | -6/Data Miner | Free R-10 Processor | -6/Data Miner | Free L-41 Fighter | -6/Data Miner | Free S-27 Virus | -6/Data Miner | Free E-15 Imp | -5/Factory | Hacked Y-64 Sentinel | -5/Factory | Hacked Fabricated ------------ Force Rifle | x2 | -6/Factory Imp. Weapon Cycler | x2 | -6/Factory F-cell Engine | x1 | -6/Factory F-cell Engine | x1 | -5/Factory F-cell Engine | x1 | -5/Factory Imp. Linear Gravjet | x2 | -4/Factory Alien Tech Used ----------------- None Achievements -------------- None Challenges ------------ None RPGLIKE | -11 -10 -10 -9 -8 -8 -8 -6 -6 -6 -6 -6 -6 -5 -5 -5 -5 -5 -5 -4 -4 -4 -4 -3 --------- Run | Jun Mat Min Mat Mat Sto Rec Fac Was Fac Low Low Dat Pro Fac Ext Cet Arc Hub Fac Upp Upp War Pro Levels Raised 27 | . . 1 3 2 2 1 6 . 1 1 1 . 1 4 2 . . 1 . . . 1 . XP Earned 43835 | 3000 1215 1100 4644 2595 2978 1710 8826 200 1405 2277 244 822 1554 6323 2006 398 111 671 545 195 183 833 . XP Spent 33525 | 33525 . . . . . . . . . . . . . . . . . . . . . . . Upgrades 35 | 35 . . . . . . . . . . . . . . . . . . . . . . . Power Slot 3 | 3 . . . . . . . . . . . . . . . . . . . . . . . Propulsion Slot 7 | 7 . . . . . . . . . . . . . . . . . . . . . . . Utility Slot 9 | 9 . . . . . . . . . . . . . . . . . . . . . . . Weapon Slot 3 | 3 . . . . . . . . . . . . . . . . . . . . . . . Core Integrity 1 | 1 . . . . . . . . . . . . . . . . . . . . . . . Heat Dissipation 1 | 1 . . . . . . . . . . . . . . . . . . . . . . . Hack Attack % 2 | 2 . . . . . . . . . . . . . . . . . . . . . . . Hack Defense % 2 | 2 . . . . . . . . . . . . . . . . . . . . . . . KI Resistance % 3 | 3 . . . . . . . . . . . . . . . . . . . . . . . TH Resistance % 2 | 2 . . . . . . . . . . . . . . . . . . . . . . . KI Damage % 2 | 2 . . . . . . . . . . . . . . . . . . . . . . . Protomatter Created 6096 | . 71 57 227 43 72 54 769 87 126 183 . . 285 1018 1321 230 167 508 252 118 137 371 . Integrity Restored 729 | . 34 30 76 . 35 . 70 . 4 27 . . 20 126 148 24 . 46 17 39 33 . . Core 380 | . 15 15 17 . 9 . 46 . 4 18 . . 13 51 102 18 . 29 12 4 27 . . Parts 349 | . 19 15 59 . 26 . 24 . . 9 . . 7 75 46 6 . 17 5 35 6 . . Protomatter Decayed 6409 | . 34 . 154 43 147 . 774 228 63 203 . 41 335 1445 1290 205 167 611 182 114 125 248 . Game ------ Seed ActiveIntegratedRegenerator Manual? 0 Play Time 03:11:56 Cumulative 270.7 hours Start 2023.05.01 @ 02:06:11 End 2023.05.08 @ 22:19:48 Sessions 3 Manual Loads 0 Difficulty Rogue Special Mode Winter2019/RPGLIKE Game No. 73 Rogue 49 Adventurer 2 Explorer 22 Win Type - Total 58 Types 16/9/5/5/6/2/7/4/4 Lore% 98 Gallery% 98 Achievement% 94 Wizard Run 0 Options --------- ASCII 0 Keyboard 0 Movement Numpad Keybinds 0 Fullscreen 2 Font 18/X11Bold Map View 76x50 Tactical HUD 1 Map Filters NONE Filters NONE Steam X RUN: b7bd0dd6-da41-46be-941c-aa72d44ac813